bitfinex-derivatives/quotes_BTCF0:USTF0_20240830
["timestamp","ask_amount","ask_price","bid_price","bid_amount"]
[1725042630060,0.084783,58983.0,58969.0,0.3608]
[1725042630247,0.6508,58993.0,58984.0,0.08478]
[1725042630248,0.445569,58993.0,58984.0,0.08478]
[1725042630446,0.3608,58993.0,58985.0,0.3608]
[1725042630646,0.3608,58993.0,58983.0,0.3608]
[1725042630858,0.29,58987.0,58983.0,0.3608]
[1725042631043,0.084782,58983.0,58982.0,0.00025421]
[1725042631248,0.084782,58983.0,58979.0,0.022]
[1725042631552,0.374787,58980.0,58979.0,0.022]
[1725042631751,0.084787,58980.0,58979.0,0.022]
[1725042631949,0.084787,58980.0,58966.0,0.312]
[1725042631950,0.79864,58980.0,58966.0,0.022]
[1725042632149,0.735605,58968.0,58966.0,0.022]
[1725042632459,0.6508,58968.0,58966.0,0.022]
[1725042632663,0.00025421,58973.0,58971.0,0.084798]
[1725042632854,0.00025421,58973.0,58972.0,0.3608]
[1725042633050,0.29,58972.0,58966.0,0.022]
[1725042633258,0.6508,58967.0,58966.0,0.106807]
[1725042633650,0.00025421,58973.0,58966.0,0.022]
[1725042633851,0.002,58983.0,58972.0,0.3608]
[1725042633852,0.001,58983.0,58972.0,0.3608]
[1725042634055,0.001,58983.0,58977.0,0.3608]
[1725042634256,0.3608,59002.0,58982.0,0.3608]
[1725042634461,0.3608,59002.0,58995.0,0.3608]
[1725042634654,0.3608,59004.0,58995.0,0.084765]
[1725042634849,0.29,59000.0,58994.0,0.00025421]
[1725042635148,0.3608,59004.0,58994.0,2.1e-07]
[1725042635149,0.735565,58995.0,58994.0,2.1e-07]
[1725042635749,1.18113,58995.0,58994.0,2.1e-07]
[1725042635949,1.18113,58995.0,58966.0,0.022]
[1725042635950,0.5,58994.0,58966.0,0.022]
[1725042636160,0.374805,58967.0,58966.0,0.022]
[1725042636357,0.084805,58967.0,58966.0,0.022]
[1725042636555,0.374805,58967.0,58966.0,0.022]
[1725042636952,0.374805,58967.0,58953.0,0.1438]
[1725042636953,1.75956,58967.0,58953.0,0.022]
[1725042637152,0.29,58964.0,58956.0,0.3608]
[1725042637348,0.29,58964.0,58954.0,0.00025421]
[1725042637349,0.29,58964.0,58962.0,0.084812]
[1725042637658,0.29,58964.0,58956.0,0.08482]
[1725042637856,0.29,58959.0,58954.0,0.00025421]
[1725042638057,0.00025421,58966.0,58958.0,0.3608]
[1725042638253,0.00025421,58966.0,58964.0,0.084809]
[1725042638662,0.23933318,58969.0,58968.0,0.084804]
[1725042638868,0.3608,58980.0,58976.0,0.084792]
[1725042639069,0.3608,58985.0,58983.0,0.084782]
[1725042639862,0.29,58984.0,58978.0,0.00025421]
[1725042640063,0.084787,58980.0,58978.0,0.00025421]
[1725042640264,0.3608,58979.0,58978.0,0.00025421]
[1725042640468,0.084787,58980.0,58978.0,0.00025421]
[1725042640659,0.445587,58980.0,58978.0,0.00025421]
[1725042640854,0.29,58984.0,58978.0,0.00025421]
[1725042641060,0.3708,58985.0,58978.0,0.00025421]
[1725042641270,0.01,58985.0,58978.0,0.08504321]
[1725042641455,0.01,58985.0,58978.0,0.00025421]
[1725042641661,0.005,58985.0,58982.0,0.084782]
[1725042642066,0.005,58985.0,58978.0,0.00025421]
[1725042642559,0.00025421,58990.0,58989.0,0.084774]
[1725042642762,0.00025421,58990.0,58981.0,0.3608]
[1725042642957,0.00025421,58990.0,58984.0,0.084781]
[1725042643166,0.002,58985.0,58978.0,0.00025421]
[1725042643368,0.084787,58980.0,58978.0,0.00025421]
[1725042643664,0.29,58983.0,58978.0,0.00025421]
[1725042643868,0.084786,58981.0,58979.0,0.3608]
[1725042644071,0.084786,58981.0,58978.0,0.00025421]
[1725042644072,0.29,58983.0,58978.0,0.00025421]
[1725042644271,0.374783,58983.0,58979.0,0.084788]
[1725042644567,0.084787,58980.0,58978.0,0.00025421]
[1725042645157,0.23660304,58983.0,58981.0,0.084785]
[1725042645363,0.090783,58983.0,58978.0,0.00025421]
[1725042645564,0.006,58983.0,58978.0,0.00025421]
[1725042646174,0.084785,58982.0,58978.0,0.00025421]
[1725042646567,0.012,58983.0,58978.0,0.00025421]
[1725042646773,0.006,58983.0,58978.0,0.00025421]
[1725042647072,0.006,58983.0,58978.0,0.00125421]
[1725042647073,0.084788,58979.0,58978.0,0.00125421]
[1725042647579,0.011,58982.0,58978.0,0.00025421]
[1725042647780,0.011,58982.0,58981.0,0.084785]
[1725042648072,0.084788,58979.0,58978.0,0.00025421]
[1725042648278,1.059576,58979.0,58978.0,0.00025421]
[1725042648469,0.084794,58976.0,58964.0,0.41025852]
[1725042648667,0.3,58979.0,58965.0,0.04945852]
[1725042648874,0.084795,58975.0,58970.0,0.0848]
[1725042649060,0.084795,58975.0,58965.0,0.04945852]
[1725042649267,0.084795,58975.0,58970.0,0.0848]
[1725042649566,0.084795,58975.0,58967.0,0.04945852]
[1725042649770,0.00025421,58976.0,58969.0,0.3608]
[1725042649973,0.6508,58970.0,58960.0,0.04954412]
[1725042650271,0.6498,58961.0,58955.0,0.04954412]
[1725042650471,0.084824,58954.0,58952.0,0.04954412]
[1725042650682,0.084824,58954.0,58951.0,0.04954412]
[1725042651071,0.29,58955.0,58948.0,0.04971399]
[1725042651280,0.3608,58956.0,58949.0,0.04954412]
[1725042651485,0.374824,58954.0,58948.0,0.00016987]
[1725042651676,0.374824,58954.0,58953.0,0.026]
[1725042651877,0.3608,58956.0,58953.0,0.026]
[1725042652070,0.445622,58956.0,58953.0,0.026]
[1725042652372,0.084823,58955.0,58953.0,0.026]
[1725042652877,0.084824,58954.0,58953.0,0.029]
[1725042653181,0.374824,58954.0,58953.0,0.025]
[1725042653379,0.374824,58954.0,58953.0,0.028]
[1725042653979,0.374824,58954.0,58953.0,0.025]
[1725042654177,0.374824,58954.0,58953.0,0.028]
[1725042655069,0.374824,58954.0,58953.0,0.029]
[1725042656979,0.084824,58954.0,58953.0,0.029]
[1725042657174,0.374824,58954.0,58953.0,0.029]
[1725042657878,0.968528,58954.0,58953.0,0.029]
[1725042658478,0.883704,58954.0,58953.0,0.029]
[1725042658677,0.968528,58954.0,58953.0,0.029]
[1725042659279,1.77968,58954.0,58948.0,0.00016987]
[1725042659478,1.71726265,58949.0,58948.0,0.00016987]
[1725042659785,0.87283565,58949.0,58948.0,8.7e-07]
[1725042659985,1.98175565,58949.0,58948.0,8.7e-07]
[1725042660179,2.00175565,58949.0,58948.0,8.7e-07]
[1725042660379,2.00175565,58949.0,58948.0,0.00400087]
[1725042660575,1.98175565,58949.0,58948.0,0.00400087]
[1725042660776,0.169686,58941.0,58937.0,0.08243088]
[1725042660970,0.905329,58941.0,58929.0,0.08243088]
[1725042661187,2.014329,58941.0,58929.0,0.08243088]
[1725042661477,2.014329,58941.0,58927.0,0.08243088]
[1725042661682,2.014329,58941.0,58927.0,0.16729288]
[1725042661881,1.929486,58941.0,58927.0,0.08243088]
[1725042662071,0.445643,58941.0,58935.0,0.08485]
[1725042662274,0.3608,58941.0,58940.0,0.615844]
[1725042662584,0.3608,58941.0,58940.0,1.34515648]
[1725042662881,0.3608,58941.0,58940.0,0.74515648]
[1725042663084,0.00025443,58946.0,58945.0,0.084837]
[1725042663285,0.00025443,58946.0,58941.0,0.08324105]
[1725042663481,0.3608,58942.0,58941.0,0.16808405]
[1725042663684,0.3608,58942.0,58941.0,0.21415538]
[1725042663990,0.3608,58942.0,58941.0,0.16807176]
[1725042664187,0.3608,58942.0,58941.0,0.29737898]
[1725042664684,0.3608,58942.0,58941.0,0.16807162]
[1725042664995,0.3688,58942.0,58941.0,0.21415068]
[1725042665282,0.3688,58942.0,58941.0,1.32311068]
[1725042665283,0.008,58942.0,58941.0,1.32311068]
[1725042665487,0.29,58955.0,58952.0,0.084827]
[1725042665692,0.084823,58956.0,58952.0,0.084827]
[1725042665882,0.3608,58958.0,58952.0,0.084827]
[1725042666487,0.30137498,58953.0,58952.0,0.084827]
[1725042666695,0.36105443,58958.0,58957.0,0.08482]
[1725042667188,0.36105443,58958.0,58957.0,0.72293411]
[1725042667987,0.36705443,58958.0,58957.0,0.21409411]
[1725042668195,0.3608,58967.0,58966.0,0.084807]
[1725042669485,0.3608,58967.0,58966.0,0.16795018]
[1725042669686,0.3608,58967.0,58966.0,0.084807]
[1725042670483,0.3608,58967.0,58963.0,0.08314318]
[1725042670684,0.3608,58967.0,58961.0,0.00025443]
[1725042670685,0.459605,58967.0,58966.0,0.001]
[1725042670886,0.54441,58967.0,58966.0,0.001]
[1725042671077,1.06217,58967.0,58966.0,0.002]
[1725042671490,1.65317,58967.0,58966.0,0.001]
[1725042671792,1.66217,58967.0,58966.0,0.001]
[1725042671979,0.08481,58964.0,58963.0,0.001]
[1725042672179,0.12,58964.0,58948.0,0.08314318]
[1725042672378,0.169672,58946.0,58945.0,0.08328854]
[1725042672588,0.169672,58946.0,58944.0,0.08328854]
[1725042672589,0.169674,58945.0,58944.0,0.08328854]
[1725042672782,0.084843,58941.0,58935.0,0.08328854]
[1725042672983,0.084843,58941.0,58931.0,0.08328854]
[1725042672984,0.455643,58941.0,58931.0,0.08328854]
[1725042673184,0.445643,58941.0,58935.0,0.00025443]
[1725042673691,0.454643,58941.0,58935.0,0.00025443]
[1725042674089,0.453643,58941.0,58935.0,0.00025443]
[1725042674483,0.443643,58941.0,58935.0,0.00025443]
[1725042674890,0.448643,58941.0,58940.0,0.023]
[1725042675099,0.463643,58941.0,58940.0,0.023]
[1725042675990,0.455643,58941.0,58940.0,0.023]
[1725042676197,0.3708,58941.0,58940.0,0.023]
[1725042676383,0.3708,58941.0,58940.0,0.107844]
[1725042676586,0.745643,58941.0,58940.0,0.023]
[1725042677489,0.830486,58941.0,58940.0,0.023]
[1725042677799,0.745643,58941.0,58940.0,0.023]
[1725042680996,0.57049419,58941.0,58940.0,0.023]
[1725042681804,0.19565119,58941.0,58940.0,0.616844]
[1725042682199,0.01,58941.0,58940.0,1.216844]
[1725042682400,0.3608,58960.0,58945.0,0.084837]
[1725042682691,0.3608,58960.0,58959.0,0.084817]
[1725042683196,0.08482,58957.0,58954.0,0.084823]
[1725042683408,0.3608,58960.0,58950.0,0.3608]
[1725042683713,0.00025443,58961.0,58960.0,0.084815]
[1725042684816,0.01425443,58961.0,58960.0,0.084815]
[1725042685125,0.01425443,58961.0,58960.0,0.211015]
[1725042685805,0.01425443,58961.0,58960.0,1.319815]
[1725042686215,0.02725443,58961.0,58960.0,0.720815]
[1725042687327,0.02725443,58961.0,58960.0,1.320815]
[1725042689025,0.02725443,58961.0,58960.0,0.720815]
[1725042689209,0.02725443,58961.0,58960.0,0.212015]
[1725042689515,0.47286843,58961.0,58960.0,0.001]
[1725042689917,1.94246843,58961.0,58950.0,0.00025443]
[1725042690122,0.3608,58951.0,58928.0,0.6019]
[1725042690325,0.374843,58941.0,58928.0,0.6019]
[1725042690517,0.374843,58941.0,58929.0,0.01265469]
[1725042690821,0.374843,58941.0,58933.0,0.3608]
[1725042691211,0.00025443,58946.0,58935.0,0.00025443]
[1725042691415,0.00025443,58946.0,58943.0,0.3608]
[1725042691721,0.00025443,58946.0,58945.0,0.084837]
[1725042693725,0.00125443,58946.0,58945.0,0.084837]
[1725042694124,0.00125443,58946.0,58945.0,1.193797]
[1725042694331,0.445598,58973.0,58945.0,1.193797]
[1725042694517,0.00088,58971.0,58965.0,0.084808]
[1725042694714,0.00088,58971.0,58961.0,0.3608]
[1725042695033,0.3608,58973.0,58970.0,0.0848]
[1725042695218,0.36105443,58977.0,58969.0,0.3608]
[1725042695415,0.36105443,58977.0,58974.0,0.084794]
[1725042696035,0.00025443,58977.0,58976.0,0.084792]
[1725042696218,0.00025443,58977.0,58974.0,0.3608]
[1725042696617,0.00025443,58977.0,58976.0,0.084792]
[1725042697226,0.00225443,58977.0,58976.0,0.084792]
[1725042698125,0.00625443,58977.0,58976.0,0.084792]
[1725042698630,0.00225443,58977.0,58976.0,0.084792]
[1725042698824,0.00325443,58977.0,58976.0,0.084792]
[1725042699126,0.00725443,58977.0,58976.0,0.084792]
[1725042699634,0.00325443,58977.0,58976.0,0.084792]
[1725042699936,0.00925443,58977.0,58976.0,1.194472]
[1725042700124,0.00925443,58977.0,58976.0,0.594472]
[1725042700321,0.01225443,58977.0,58976.0,0.595472]
[1725042700521,0.00625443,58977.0,58976.0,0.594472]
[1725042700826,0.01225443,58977.0,58976.0,0.595472]
[1725042701035,0.01225443,58977.0,58976.0,0.086792]
[1725042701234,0.01225443,58977.0,58976.0,1.195472]
[1725042701430,0.00625443,58977.0,58976.0,1.194472]
[1725042701729,0.01025443,58977.0,58976.0,0.085792]
[1725042702124,0.00925443,58977.0,58976.0,1.193472]
[1725042702323,0.00925443,58977.0,58976.0,0.593472]
[1725042702723,0.00925443,58977.0,58976.0,1.20640907]
[1725042702924,0.084767,58994.0,58976.0,1.12161707]
[1725042703132,0.084767,58994.0,58984.0,0.3608]
[1725042703324,0.3608,58997.0,58984.0,0.3608]
[1725042703825,0.3608,58997.0,58991.0,0.084771]
[1725042704031,0.445563,58997.0,58991.0,0.084771]
[1725042704232,0.3608,58997.0,58988.0,0.00025443]
[1725042704535,0.29,58996.0,58988.0,0.00025443]
[1725042704732,0.08477,58992.0,58987.0,0.04044829]
[1725042704939,0.1824344,58991.0,58987.0,0.04044829]
[1725042705231,0.1824344,58990.0,58984.0,0.3618]
[1725042705438,0.1824344,58989.0,58984.0,0.3618]
[1725042705626,0.016,58994.0,58988.0,0.084775]
[1725042705939,0.012,58992.0,58991.0,0.084771]
[1725042706138,0.19442709,58992.0,58991.0,0.084771]
[1725042706330,0.19442709,58992.0,58991.0,0.593331]
[1725042706639,0.18242709,58992.0,58991.0,0.084771]
[1725042707434,0.12684963,58992.0,58991.0,0.085771]
[1725042707643,0.19642709,58992.0,58991.0,0.085771]
[1725042708644,0.14084963,58992.0,58991.0,0.086771]
[1725042708937,0.14084515,58992.0,58991.0,0.002]
[1725042709430,0.22561415,58992.0,58991.0,0.002]
[1725042709737,0.22561415,58992.0,58991.0,0.00180001]
[1725042710233,1.03076061,58992.0,58991.0,0.00180001]
[1725042710441,1.03076061,58992.0,58981.0,0.00025443]
[1725042710442,0.084784,58982.0,58981.0,0.00025443]
[1725042710741,0.19762915,58982.0,58981.0,0.00025443]
[1725042711836,0.12084515,58982.0,58981.0,0.00125443]
[1725042712034,0.12084515,58982.0,58981.0,0.08603943]
[1725042712549,0.12084515,58982.0,58981.0,0.95547943]
[1725042712838,0.008,58982.0,58981.0,0.00125443]
[1725042713037,0.092784,58982.0,58981.0,0.00125443]
[1725042713241,1.047008,58982.0,58981.0,0.00125443]
[1725042713547,1.047008,58982.0,58962.0,0.3608]
[1725042713548,0.083805,58968.0,58963.0,0.084811]
[1725042713747,0.3608,58971.0,58963.0,0.08481]
[1725042713930,0.084801,58970.0,58963.0,0.08481]
[1725042714129,0.3608,58964.0,58955.0,0.3608]
[1725042714929,0.3608,58964.0,58963.0,0.011]
[1725042715340,0.44561,58964.0,58963.0,0.011]
[1725042715648,0.3608,58964.0,58963.0,0.011]
[1725042715941,0.3608,58964.0,58955.0,0.3608]
[1725042716139,0.3618,58964.0,58963.0,0.084811]
[1725042716540,0.3618,58964.0,58955.0,0.3748]
[1725042717048,0.3618,58964.0,58955.0,0.014]
[1725042717049,0.3608,58956.0,58955.0,0.014]
[1725042717627,0.3608,58956.0,58954.0,0.00025443]
[1725042717832,0.3378,58956.0,58954.0,0.00025443]
[1725042718441,0.084816,58960.0,58954.0,0.00025443]
[1725042718744,0.084816,58960.0,58955.0,0.002]
[1725042718943,0.3608,58964.0,58955.0,0.005]
[1725042719141,0.3608,58964.0,58959.0,0.084816]
[1725042719345,0.3608,58964.0,58954.0,0.00125443]
[1725042719530,0.008,58956.0,58955.0,0.374823]
[1725042719736,0.00025443,58965.0,58960.0,0.29]
[1725042719944,0.00025443,58965.0,58964.0,0.37481]
[1725042720333,0.00025443,58965.0,58964.0,1.48361]
[1725042720534,0.3608,58979.0,58964.0,1.48361]
[1725042720742,0.3608,58979.0,58978.0,0.08479]
[1725042721052,0.1219,58992.0,58978.0,0.08479]
[1725042721053,0.3608,58993.0,58978.0,0.6508]
[1725042721231,0.445569,58993.0,58978.0,0.6508]
[1725042721441,0.29,58990.0,58984.0,0.3608]
[1725042721634,0.36105443,58993.0,58984.0,0.3608]
[1725042721956,0.00025443,58993.0,58992.0,0.445569]
[1725042722546,0.01425443,58993.0,58992.0,0.445569]
[1725042723939,0.121,59020.0,58993.0,0.084768]
[1725042724138,0.3608,59022.0,59015.0,0.084736]
[1725042724453,0.3608,59022.0,59009.0,0.3608]
[1725042724639,0.084735,59016.0,59009.0,0.3608]
[1725042724836,0.084735,59016.0,59008.0,0.084746]
[1725042725647,0.3608,59017.0,59015.0,0.001]
[1725042725946,0.3608,59017.0,59010.0,0.084743]
[1725042726147,0.014,59016.0,59011.0,0.084742]
[1725042726346,0.014,59016.0,59015.0,0.084736]
[1725042727550,0.014,59016.0,59015.0,0.593096]
[1725042727752,0.05200742,59034.0,59030.0,0.084714]
[1725042727946,0.18512097,59036.0,59031.0,0.29]
[1725042728248,0.18512097,59037.0,59031.0,0.29]
[1725042728460,0.3608,59052.0,59031.0,0.29]
[1725042728461,0.3608,59052.0,59036.0,0.6508]
[1725042728756,0.00025422,59050.0,59045.0,0.29]
[1725042728953,0.3608,59049.0,59038.0,0.37495622]
[1725042729255,0.084691,59047.0,59040.0,0.0847]
[1725042729546,0.05199626,59048.0,59038.0,0.00025422]
[1725042729547,0.3608,59044.0,59038.0,0.00025422]
[1725042729750,0.3608,59049.0,59038.0,0.00025422]
[1725042730057,0.084693,59046.0,59038.0,0.08495722]
[1725042730250,0.36105422,59050.0,59040.0,0.0847]
[1725042730443,0.3608,59045.0,59038.0,0.00025422]
[1725042730747,0.3608,59048.0,59040.0,0.0847]
[1725042730951,0.3608,59048.0,59041.0,0.084698]
[1725042731344,0.084691,59047.0,59038.0,0.29025422]
[1725042731538,0.084692,59046.0,59038.0,0.29025422]
[1725042731947,0.084692,59046.0,59040.0,0.001]
[1725042732146,0.00025422,59050.0,59043.0,0.29]
[1725042733540,0.3608,59049.0,59038.0,0.00025422]
[1725042733848,0.084716,59029.0,59020.0,0.29]
[1725042734042,0.084716,59029.0,59015.0,0.3608]
[1725042734043,0.084725,59023.0,59015.0,0.3608]
[1725042734650,0.3598,59025.0,59015.0,0.3608]
[1725042734957,0.084734,59017.0,59015.0,0.32472001]
[1725042735167,0.05201416,59016.0,59015.0,0.32472001]
[1725042735457,0.41281416,59016.0,59014.0,0.00025422]
[1725042735651,0.3608,59016.0,59015.0,0.084736]
[1725042735840,0.41282101,59016.0,59015.0,0.084696]
[1725042736046,0.41282101,59016.0,59015.0,0.098696]
[1725042736248,0.41282101,59016.0,59015.0,0.014]
[1725042736642,0.49755601,59016.0,59015.0,0.014]
[1725042736848,0.49655601,59016.0,59015.0,0.014]
[1725042737250,1.97965101,59016.0,59015.0,0.014]
[1725042737457,0.084736,59015.0,59014.0,0.00025422]
[1725042737656,0.19753515,59015.0,59014.0,0.00025422]
[1725042737862,0.05202101,59015.0,59014.0,0.00025422]
[1725042738154,0.05102101,59015.0,59014.0,0.00025422]
[1725042738351,0.05202178,59015.0,59014.0,0.08499222]
[1725042738663,0.13675778,59015.0,59014.0,0.00025422]
[1725042738863,0.13675778,59015.0,59014.0,0.00125422]
[1725042739155,1.32985378,59015.0,59014.0,0.00225422]
[1725042739461,1.32985378,59015.0,58984.0,0.3608]
[1725042739462,0.11279992,59015.0,58984.0,0.3608]
[1725042739667,0.11279992,59015.0,58985.0,0.084779]
[1725042739668,0.084774,58990.0,58985.0,0.084779]
[1725042739958,0.084774,58990.0,58984.0,0.3608]
[1725042739959,0.05102178,58989.0,58987.0,0.084777]
[1725042740259,0.31246326,58994.0,58984.0,0.3608]
[1725042740453,0.31246326,58994.0,58989.0,0.084773]
[1725042740454,0.00025422,58992.0,58989.0,0.084773]
[1725042740652,0.00025422,58992.0,58984.0,0.445581]
[1725042740844,0.00025422,58992.0,58985.0,0.084778]
[1725042741053,0.08402322,58993.0,58984.0,0.3608]
[1725042741255,0.31246326,58994.0,58984.0,0.3608]
[1725042741659,0.084772,58991.0,58989.0,0.001]
[1725042741844,0.001,58992.0,58989.0,0.001]
[1725042742248,0.001,58993.0,58984.0,0.3618]
[1725042742453,0.001,58993.0,58984.0,0.001]
[1725042742754,0.44558,58985.0,58984.0,0.001]
[1725042743160,0.44458,58985.0,58984.0,0.001]
[1725042743358,1.55318,58985.0,58984.0,0.001]
[1725042743547,0.95318,58985.0,58984.0,0.001]
[1725042743860,0.083784,58982.0,58981.0,0.00025422]
[1725042744362,0.082784,58982.0,58981.0,0.00025422]
[1725042744556,1.191424,58982.0,58981.0,0.00025422]
[1725042744856,0.0848,58971.0,58966.0,0.084807]
[1725042745157,0.0838,58971.0,58962.0,0.3608]
[1725042745350,0.084809,58965.0,58962.0,0.445611]
[1725042745546,0.3598,58970.0,58964.0,0.084808]
[1725042745752,0.084809,58965.0,58962.0,0.3608]
[1725042745955,0.084811,58963.0,58962.0,0.3608]
[1725042746155,0.084811,58963.0,58960.0,0.00025422]
[1725042746156,0.169628,58961.0,58960.0,0.00025422]
[1725042746352,0.083814,58961.0,58960.0,0.00025422]
[1725042746763,0.3608,58963.0,58960.0,0.00025422]
[1725042747061,0.445611,58963.0,58960.0,0.00025422]
[1725042747644,0.444611,58963.0,58960.0,0.00025422]
[1725042747852,0.084814,58961.0,58960.0,0.00025422]
[1725042748052,0.083814,58961.0,58960.0,0.00025422]
[1725042748256,1.192614,58961.0,58960.0,0.00025422]
[1725042748458,0.083814,58961.0,58960.0,0.00125422]
[1725042748852,0.083814,58961.0,58960.0,0.00225422]
[1725042749051,0.005,58961.0,58960.0,0.00225422]
[1725042749255,0.005,58961.0,58960.0,0.08706922]
[1725042749656,0.089814,58961.0,58960.0,0.00225422]
[1725042749851,0.005,58961.0,58960.0,0.00225422]
[1725042750052,0.005,58961.0,58960.0,0.37706922]
[1725042750261,0.005,58961.0,58960.0,0.29225422]
[1725042750461,0.005,58961.0,58960.0,0.37706922]
[1725042751165,0.005,58961.0,58960.0,0.00225422]
[1725042751356,0.005,58961.0,58960.0,0.08706922]
[1725042752662,0.005,58961.0,58960.0,0.37706922]
[1725042753160,0.005,58961.0,58960.0,0.08706922]
[1725042753665,0.005,58961.0,58960.0,0.44786922]
[1725042753868,0.00025422,58972.0,58960.0,1.76185422]
[1725042754167,0.00025422,58972.0,58971.0,0.6008]
[1725042754563,0.1177,58987.0,58971.0,1.19432]
[1725042754761,0.084768,58993.0,58983.0,0.24]
[1725042754966,0.084768,58993.0,58988.0,0.084774]
[1725042755270,0.3608,58994.0,58991.0,0.24]
[1725042755569,0.3608,58994.0,58993.0,0.084768]
[1725042755763,0.3608,58994.0,58991.0,0.24]
[1725042756064,0.005,58993.0,58987.0,0.00025422]
[1725042756267,0.089768,58993.0,58987.0,0.00025422]
[1725042756472,0.005,58993.0,58990.0,0.084772]
[1725042756761,0.08477,58992.0,58987.0,0.00025422]
[1725042757170,0.006,58993.0,58987.0,0.00025422]
[1725042757562,0.084773,58990.0,58987.0,0.00025422]
[1725042757762,0.005,58993.0,58987.0,0.00025422]
[1725042757958,0.001,58992.0,58991.0,0.084771]
[1725042758163,0.001,58992.0,58991.0,0.085771]
[1725042758363,0.001,58992.0,58991.0,0.001]
[1725042758867,0.009,58990.0,58987.0,0.00225422]
[1725042759055,0.009,58990.0,58989.0,0.084774]
[1725042759367,0.3608,59006.0,58989.0,0.29]
[1725042759670,0.3608,59006.0,58987.0,0.00125422]
[1725042759671,0.3608,59006.0,58995.0,0.29]
[1725042759859,0.3608,59006.0,58997.0,0.084762]
[1725042760463,0.3608,59019.0,59012.0,0.08474]
[1725042760660,0.084738,59015.0,59012.0,0.29]
[1725042760966,0.3608,59019.0,59008.0,0.29]
[1725042761165,0.084737,59015.0,59010.0,0.084742]
[1725042761366,0.3608,59019.0,59008.0,0.29]
[1725042761563,0.084739,59013.0,59008.0,0.29025422]
[1725042761868,0.084739,59013.0,59012.0,0.001]
[1725042762268,0.084741,59012.0,59008.0,0.29025422]
[1725042762474,0.084742,59011.0,59010.0,0.004]
[1725042762865,0.084742,59011.0,59008.0,0.37500022]
[1725042763061,0.444542,59011.0,59008.0,0.37500022]
[1725042763273,0.008,59013.0,59009.0,0.084745]
[1725042763979,0.3608,59012.0,59010.0,0.001]
[1725042764168,0.084742,59011.0,59010.0,0.001]
[1725042764673,0.091742,59011.0,59010.0,0.001]
[1725042764871,0.007,59011.0,59010.0,0.085744]
[1725042765181,0.007,59012.0,59011.0,0.084742]
[1725042765569,0.084739,59014.0,59011.0,0.084742]
[1725042765771,0.44578622,59019.0,59010.0,0.002]
[1725042766273,0.44578622,59019.0,59010.0,0.086743]
[1725042766464,0.08474,59013.0,59011.0,0.084742]
[1725042766872,0.36105422,59019.0,59015.0,0.084736]
[1725042767069,0.36105422,59019.0,59018.0,0.084732]
[1725042767070,0.44578522,59019.0,59018.0,0.084732]
[1725042767268,0.084735,59017.0,59015.0,0.29]
[1725042767671,0.44578522,59019.0,59011.0,0.002]
[1725042767974,0.009,59013.0,59012.0,0.084741]
[1725042768168,0.008,59013.0,59012.0,0.084741]
[1725042768682,0.084736,59016.0,59012.0,0.084741]
[1725042768871,0.014,59017.0,59012.0,0.084741]
[1725042768872,0.084737,59015.0,59012.0,0.084741]
[1725042769373,0.011,59013.0,59012.0,0.084741]
[1725042770666,0.001,59016.0,59015.0,0.084735]
[1725042770863,0.011,59016.0,59015.0,0.374735]
[1725042771267,0.001,59016.0,59015.0,0.374735]
[1725042771478,0.00025422,59019.0,59018.0,0.084732]
[1725042772374,0.084702,59039.0,59018.0,0.084732]
[1725042772375,0.3608,59043.0,59033.0,0.08471]
[1725042772575,0.3608,59043.0,59039.0,0.29]
[1725042772774,0.084701,59040.0,59039.0,0.29]
[1725042772979,0.084703,59039.0,59034.0,0.084709]
[1725042773176,0.084709,59034.0,59033.0,0.29]
[1725042773376,0.084716,59029.0,59028.0,0.00025422]
[1725042773566,0.64300874,59029.0,59028.0,0.00025422]
[1725042773772,1.2852697,59029.0,59028.0,0.00025422]
[1725042774070,1.75124874,59029.0,59028.0,0.00021422]
[1725042774273,1.15124874,59029.0,59028.0,0.00021422]
[1725042774572,1.17419846,59029.0,59028.0,0.00021422]
[1725042774777,1.23496474,59029.0,59028.0,0.00021422]
[1725042775076,1.24396474,59029.0,59028.0,0.00121422]
[1725042775267,1.85671951,59029.0,59028.0,0.00121422]
[1725042775473,2.07651602,59029.0,59028.0,0.00221422]
[1725042775683,1.47651602,59029.0,59028.0,0.00221422]
[1725042775980,2.07651602,59029.0,59028.0,0.00221422]
[1725042776373,1.47651602,59029.0,59028.0,0.00221422]
[1725042776873,2.01574974,59029.0,59028.0,0.00221422]
[1725042777075,1.84971951,59029.0,59028.0,0.00121422]
[1725042777277,1.85771951,59029.0,59028.0,0.00221422]
[1725042777665,1.25771951,59029.0,59028.0,0.00121422]
[1725042777972,1.85871951,59029.0,59028.0,0.00221422]
[1725042778880,0.084726,59022.0,59021.0,0.225308]
[1725042779078,0.49753646,59022.0,59021.0,0.225308]
[1725042779273,0.55830274,59022.0,59021.0,0.14058]
[1725042779476,0.55730274,59022.0,59021.0,0.14058]
[1725042779873,0.083726,59022.0,59021.0,0.14058]
[1725042780275,0.086726,59022.0,59021.0,0.14158]
[1725042780573,0.085726,59022.0,59021.0,0.226308]
[1725042781489,0.012,59022.0,59021.0,0.588108]
[1725042782378,0.012,59022.0,59021.0,0.672836]
[1725042782886,0.012,59022.0,59021.0,0.588108]
[1725042784079,0.012,59022.0,59021.0,1.696388]
[1725042784275,0.012,59022.0,59021.0,1.096388]
[1725042784874,0.012,59022.0,59021.0,1.181116]
[1725042785202,0.012,59022.0,59021.0,1.096388]
[1725042786480,0.012,59022.0,59021.0,1.181116]
[1725042786688,0.05200858,59035.0,59021.0,1.94402832]
[1725042786984,0.3608,59043.0,59021.0,1.94402832]
[1725042786985,0.26945492,59048.0,59034.0,0.6008]
[1725042787284,0.08468,59055.0,59047.0,0.6008]